[Event "16th Spilimbergo Open 2018"]
[Site "Spilimbergo"]
[Date "2018.08.15"]
[Round "9.5"]
[White "Mesaros, Florian"]
[Black "Sonis, Francesco"]
[Result "1-0"]
[ECO "D11"]
[WhiteElo "2422"]
[BlackElo "2468"]
[Annotator "ChessBase"]
[PlyCount "151"]
[EventDate "2018.08.10"]
[EventType "swiss"]
[EventCountry "ITA"]
[SourceTitle "playchess.com"]
[Source "ChessBase"]
[SourceQuality "1"]
[TimeControl "5400+30"]

1. Nf3 {[%emt 0:00:30]} d5 {[%emt 0:00:30]} 2. d4 {[%emt 0:00:30]} Nf6 {[%emt 0:00:00]} 3. c4 {[%emt 0:00:00]} c6 {[%emt 0:00:00]} 4. e3 {[%emt 0:00:00]} Bg4 {[%emt 0:00:30]} 5. Nc3 {[%emt 0:00:30]} e6 {[%emt 0:00:00]} 6. h3 {[%emt 0:00:00]} Bh5 {[%emt 0:00:00]} 7. g4 {[%emt 0:00:00]} Bg6 {[%emt 0:00:30]} 8. Ne5 {[%emt 0:00:30]} Nbd7 {[%emt 0:00:00]} 9. Nxg6 {[%emt 0:00:30]} hxg6 {[%emt 0:00:00]} 10. g5 {[%emt 0:00:00]} Ng8 {[%emt 0:08:30]} 11. h4 {[%emt 0:00:00]} Ne7 {[%emt 0:00:30]} 12. cxd5 {[%emt 0:00:30]} cxd5 {[%emt 0:01:30]} 13. Bd2 {[%emt 0:01:30]} Nf5 {[%emt 0:02:30]} 14. Qg4 {[%emt 0:00:30]} Qb6 {[%emt 0:10:30]} 15. Bd3 {[%emt 0:04:30]} Bb4 {[%emt 0:06:30]} 16. Rc1 {[%emt 0:08:30]} Rc8 {[%emt 0:03:30]} 17. Ke2 {[%emt 0:01:30]} Ke7 {[%emt 0:11:30]} 18. a3 {[%emt 0:00:30]} Bxc3 {[%emt 0:10:30]} 19. Bxc3 {[%emt 0:00:30]} Nd6 {[%emt 0:00:30]} 20. h5 {[%emt 0:15:30]} gxh5 {[%emt 0:01:30]} 21. Rxh5 {[%emt 0:00:30]} a5 {[%emt 0:01:30]} 22. Rxh8 {[%emt 0:15:30]} Rxh8 {[%emt 0:00:30]} 23. g6 {[%emt 0:06:30]} f5 {[%emt 0:03:30]} 24. Qf4 {[%emt 0:03:30]} Ne4 {[%emt 0:02:30]} 25. b3 {[%emt 0:20:30]} Qxb3 {[%emt 0:06:30]} 26. Bxa5 {[%emt 0:03:35]} Qxa3 {[%emt 0:00:30]} 27. Qc7 {[%emt 0:01:13]} b6 {[%emt 0:03:30]} 28. Be1 {[%emt 0:01:45]} Nd6 {[%emt 0:02:30]} 29. Rc3 {[%emt 0:01:48]} Qa8 {[%emt 0:00:30]} 30. Rc6 {[%emt 0:02:59]} Qa3 {[%emt 0:00:30]} 31. Rc3 {[%emt 0:02:56]} Qa4 {[%emt 0:11:42]} 32. Rc6 {[%emt 0:03:41]} Ne8 {[%emt 0:04:05]} 33. Qc8 {[%emt 0:00:58]} f4 {[%emt 0:04:14]} 34. exf4 {[%emt 0:01:57]} Rf8 {[%emt 0:02:38]} 35. f3 {[%emt 0:03:10]} Qxd4 {[%emt 0:00:24]} 36. Bg3 {[%emt 0:00:52]} Nef6 {[%emt 0:01:05]} 37. Qc7 {[%emt 0:00:21]} Ra8 {[%emt 0:00:12]} 38. Qd6+ {[%emt 0:00:35]} Kd8 {[%emt 0:00:08]} 39. Qxe6 {[%emt 0:00:33]} Ra2+ {[%emt 0:00:59]} 40. Rc2 {[%emt 0:00:31]} Rxc2+ {[%emt 0:00:10]} 41. Bxc2 {[%emt 0:00:02]} Qc4+ {[%emt 0:00:20]} 42. Kd2 {[%emt 0:00:18]} Qd4+ {[%emt 0:00:08]} 43. Ke2 {[%emt 0:00:22]} Qc3 {[%emt 0:01:05]} 44. Bf5 {[%emt 0:00:53]} Qb2+ {[%emt 0:00:24]} 45. Kf1 {[%emt 0:00:21]} Qb5+ {[%emt 0:01:52]} 46. Kg2 {[%emt 0:00:24]} Qb2+ {[%emt 0:00:33]} 47. Bf2 {[%emt 0:00:06]} Qb4 {[%emt 0:01:42]} 48. Bh4 {[%emt 0:00:59]} Qb2+ {[%emt 0:00:25]} 49. Kh3 {[%emt 0:00:04]} Kc7 {[%emt 0:00:27]} 50. Qe7 {[%emt 0:00:39]} Qc3 {[%emt 0:00:49]} 51. Bg4 {[%emt 0:01:23]} Qc1 {[%emt 0:00:28]} 52. Bxf6 {[%emt 0:00:23]} Qh1+ {[%emt 0:00:02]} 53. Kg3 {[%emt 0:00:06]} Qg1+ {[%emt 0:00:03]} 54. Kh3 {[%emt 0:00:08]} Qh1+ {[%emt 0:00:04]} 55. Kg3 {[%emt 0:00:00]} Qg1+ {[%emt 0:00:08]} 56. Kh4 {[%emt 0:00:55]} Qh2+ {[%emt 0:00:21]} 57. Kg5 {[%emt 0:01:32]} gxf6+ {[%emt 0:00:05]} 58. Kf5 {[%emt 0:00:10]} Kc6 {[%emt 0:01:48]} 59. Ke6 {[%emt 0:00:06]} Nc5+ {[%emt 0:00:14]} 60. Kf7 {[%emt 0:00:07]} f5 {[%emt 0:01:12]} 61. g7 {[%emt 0:00:35]} fxg4 {[%emt 0:00:17]} 62. g8=Q {[%emt 0:00:18]} Qxf4+ {[%emt 0:00:09]} 63. Qf6+ {[%emt 0:00:27]} Qxf6+ {[%emt 0:00:07]} 64. Kxf6 {[%emt 0:00:07]} gxf3 {[%emt 0:00:01]} 65. Qe8+ {[%emt 0:00:12]} Kc7 {[%emt 0:00:57]} 66. Ke5 {[%emt 0:00:39]} f2 {[%emt 0:01:02]} 67. Qf7+ {[%emt 0:00:12]} Kc6 {[%emt 0:00:21]} 68. Kd4 {[%emt 0:00:33]} Nb3+ {[%emt 0:00:27]} 69. Ke3 {[%emt 0:00:28]} d4+ {[%emt 0:00:33]} 70. Kxf2 {[%emt 0:01:10]} Nc5 {[%emt 0:00:15]} 71. Qc4 {[%emt 0:00:14]} d3 {[%emt 0:00:19]} 72. Ke3 {[%emt 0:00:08]} Kd6 {[%emt 0:00:16]} 73. Kd4 {[%emt 0:00:37]} Kc6 {[%emt 0:00:16]} 74. Qd5+ {[%emt 0:00:08]} Kb5 {[%emt 0:00:03]} 75. Kc3 {[%emt 0:00:05]} Ka5 {[%emt 0:00:33]} 76. Kc4 {[%emt 0:00:17]} 1-0

[Event "16th Spilimbergo Open 2018"]
[Site "Spilimbergo"]
[Date "2018.08.15"]
[Round "9.9"]
[White "Krysa, Leandro"]
[Black "Bove, Alessandro"]
[Result "1-0"]
[ECO "A29"]
[WhiteElo "2523"]
[BlackElo "2308"]
[Annotator "ChessBase"]
[PlyCount "45"]
[EventDate "2018.08.10"]
[EventType "swiss"]
[EventCountry "ITA"]
[SourceTitle "playchess.com"]
[Source "ChessBase"]
[SourceQuality "1"]
[TimeControl "5400+30"]

1. c4 {[%emt 0:00:30]} Nf6 {[%emt 0:01:30]} 2. Nc3 {[%emt 0:00:00]} Nc6 {[%emt 0:00:30]} 3. Nf3 {[%emt 0:03:00]} e5 {[%emt 0:01:30]} 4. g3 {[%emt 0:00:30]} d5 {[%emt 0:09:30]} 5. cxd5 {[%emt 0:00:30]} Nxd5 {[%emt 0:00:00]} 6. Bg2 {[%emt 0:00:30]} Be6 {[%emt 0:10:00]} 7. O-O {[%emt 0:02:30]} Be7 {[%emt 0:01:30]} 8. d4 {[%emt 0:00:30]} exd4 {[%emt 0:02:30]} 9. Nxd4 {[%emt 0:00:30]} Nxd4 {[%emt 0:06:30]} 10. Qxd4 {[%emt 0:00:30]} Nxc3 {[%emt 0:00:30]} 11. Qxc3 {[%emt 0:01:30]} O-O {[%emt 0:00:30]} 12. Bxb7 {[%emt 0:01:30]} Rb8 {[%emt 0:00:00]} 13. Bg2 {[%emt 0:00:30]} Bf6 {[%emt 0:03:00]} 14. Qa5 {[%emt 0:07:30]} Bxb2 {[%emt 0:10:30]} 15. Bxb2 {[%emt 0:00:30]} Rxb2 {[%emt 0:00:30]} 16. Qxa7 {[%emt 0:01:30]} Bc4 {[%emt 0:01:30]} 17. Rfc1 {[%emt 0:08:30]} Bxe2 {[%emt 0:00:30]} 18. Qxc7 {[%emt 0:00:30]} Qd2 {[%emt 0:07:30]} 19. a4 {[%emt 0:07:30]} Bf3 {[%emt 0:13:30]} 20. Qc5 {[%emt 0:01:30]} Bxg2 {[%emt 0:00:30]} 21. Kxg2 {[%emt 0:00:00]} g6 {[%emt 0:00:30]} 22. a5 {[%emt 0:04:00]} Rd8 {[%emt 0:01:30]} 23. Rd1 {[%emt 0:02:30]} 1-0

[Event "16th Spilimbergo Open 2018"]
[Site "Spilimbergo"]
[Date "2018.08.15"]
[Round "9.14"]
[White "Altini, Nicola"]
[Black "Della Pietra, Andrea"]
[Result "1-0"]
[ECO "E73"]
[WhiteElo "2425"]
[BlackElo "2212"]
[Annotator "NA RC"]
[PlyCount "117"]
[EventDate "2018.08.10"]
[EventType "swiss"]
[EventCountry "ITA"]
[SourceTitle "playchess.com"]
[Source "ChessBase"]
[SourceQuality "1"]
[TimeControl "5400+30"]

1. d4 {[%emt 0:00:30]} Nf6 {[%emt 0:00:30]} 2. c4 {[%emt 0:00:00]} g6 {[%emt 0:00:30]} 3. Nc3 {[%emt 0:00:00]} Bg7 {[%emt 0:00:30]} 4. e4 {[%emt 0:00:00]} d6 {[%emt 0:00:00]} 5. Be2 {[%emt 0:00:00]} O-O {[%emt 0:00:00]} 6. Be3 {[%emt 0:00:00]} e5 {[%emt 0:00:30]} 7. d5 {[%emt 0:00:00]} Na6 {[%emt 0:06:30]} 8. g4 {[%emt 0:00:30]} Nc5 {[%emt 0:02:30]} 9. f3 {[%emt 0:00:30]} a5 {[%emt 0:02:30]} 10. h4 {[%emt 0:00:00]} h5 {[%emt 0:02:30]} 11. g5 {[%emt 0:00:00]} Nh7 {[%emt 0:06:30]} 12. Nh3 {[%emt 0:00:30]} Bd7 {[%emt 0:02:30]} 13. Qd2 {[%emt 0:02:30]} a4 {[%emt 0:02:30]} 14. Nf2 {[%emt 0:08:30]} Kh8 {[%emt 0:06:30]} 15. Kd1 {[%emt 0:07:30]} f5 {[%emt 0:09:30]} 16. gxf6 {[%emt 0:03:30]} Bxf6 {[%emt 0:05:30]} 17. Kc2 {[%emt 0:00:30]} Bxh4 {[%emt 0:09:30]} 18. Rag1 {[%emt 0:04:30]} Rg8 {[%emt 0:01:30]} 19. Rg2 {[%emt 0:08:30]} g5 {[%emt 0:03:30]} 20. Nh3 {[%emt 0:08:30]} Qf6 {[%emt 0:09:30]} 21. Kb1 {[%emt 0:12:30]} Qe7 {[%emt 0:03:30]} 22. Bd1 {[%emt 0:01:30]} Raf8 {[%emt 0:03:30]} 23. Ng1 {[%emt 0:04:30]} Rb8 {[%emt 0:01:30]} 24. Bxc5 {[%emt 0:10:30]} dxc5 {[%emt 0:00:30]} 25. Bxa4 {[%emt 0:00:00]} Bxa4 {[%emt 0:00:30]} 26. Nxa4 {[%emt 0:01:00]} b5 {[%emt 0:00:55]} 27. cxb5 {[%emt 0:01:30]} Rxb5 {[%emt 0:00:05]} 28. Qc3 {[%emt 0:02:30]} Nf6 {[%emt 0:05:16]} 29. Nh3 {[%emt 0:05:39]} Qd6 {[%emt 0:05:08]} 30. Qc1 {[%emt 0:06:02]} Nh7 {[%emt 0:00:25]} 31. Rc2 {[%emt 0:00:47]} g4 {[%emt 0:02:08]} 32. fxg4 {[%emt 0:00:20]} hxg4 {[%emt 0:01:52]} 33. Ng1 {[%emt 0:00:13]} Bg5 {[%emt 0:02:42]} 34. Qf1 {[%emt 0:02:16]} Ra5 {[%emt 0:01:48]} 35. Rch2 {[%emt 0:01:37]} Rg7 {[%emt 0:00:26]} 36. Qf5 {[%emt 0:00:52]} Qe7 {[%emt 0:00:21]} 37. Nc3 {[%emt 0:02:29]} g3 {[%emt 0:03:37]} 38. Rxh7+ {[%emt 0:02:38]} Rxh7 {[%emt 0:00:05]} 39. Rxh7+ {[%emt 0:00:02]} Qxh7 {[%emt 0:00:04]} 40. Qxg5 {[%emt 0:00:04]} Qh2 {[%emt 0:00:58]} 41. Qxe5+ {[%emt 0:00:15]} Kg8 {[%emt 0:00:38]} 42. Nce2 {[%emt 0:00:20]} Ra8 {[%emt 0:01:09]} 43. Qxg3+ {[%emt 0:01:34]} Qxg3 {[%emt 0:00:06]} 44. Nxg3 {[%emt 0:00:03]} Kf7 {[%emt 0:00:12]} 45. a3 {[%emt 0:00:53]} Rg8 {[%emt 0:00:20]} 46. N1e2 {[%emt 0:00:00]} Kf6 {[%emt 0:00:17]} 47. Kc2 {[%emt 0:00:03]} Ke5 {[%emt 0:00:23]} 48. Kc3 {[%emt 0:00:05]} Rb8 {[%emt 0:01:04]} 49. b3 {[%emt 0:01:01]} Ra8 {[%emt 0:00:20]} 50. a4 {[%emt 0:00:01]} Rb8 {[%emt 0:00:14]} 51. Kc4 {[%emt 0:02:02]} Rb4+ {[%emt 0:00:39]} 52. Kc3 {[%emt 0:00:01]} Rb8 {[%emt 0:00:00]} 53. Kc4 {[%emt 0:01:15]} Rb4+ {[%emt 0:00:00]} 54. Kxc5 {[%emt 0:00:01]} Rxb3 {[%emt 0:00:00]} 55. a5 {[%emt 0:00:25]} Rb2 {[%emt 0:00:48]} 56. Nc3 {[%emt 0:00:13]} Kf4 {[%emt 0:00:37]} 57. Nge2+ {[%emt 0:00:07]} Ke5 {[%emt 0:00:32]} 58. Nd4 {[%emt 0:00:24]} Kf6 {[%emt 0:01:17]} 59. a6 {[%emt 0:00:08]} 1-0

[Event "16th Spilimbergo Open 2018"]
[Site "Spilimbergo"]
[Date "2018.08.15"]
[Round "9.16"]
[White "Solomon, Kenny"]
[Black "Di Benedetto, Desiree"]
[Result "1/2-1/2"]
[ECO "D36"]
[WhiteElo "2395"]
[BlackElo "2295"]
[Annotator "NA"]
[PlyCount "25"]
[EventDate "2018.08.10"]
[EventType "swiss"]
[EventCountry "ITA"]
[SourceTitle "playchess.com"]
[Source "ChessBase"]
[SourceQuality "1"]
[TimeControl "5400+30"]

1. d4 {[%emt 0:00:30]} d5 {[%emt 0:00:30]} 2. c4 {[%emt 0:00:00]} e6 {[%emt 0:00:00]} 3. Nc3 {[%emt 0:00:00]} Nf6 {[%emt 0:00:00]} 4. cxd5 {[%emt 0:00:00]} exd5 {[%emt 0:00:30]} 5. Bg5 {[%emt 0:01:00]} c6 {[%emt 0:00:30]} 6. Qc2 {[%emt 0:00:30]} Be6 {[%emt 0:08:30]} 7. e3 {[%emt 0:00:00]} Nbd7 {[%emt 0:00:00]} 8. Bd3 {[%emt 0:01:00]} h6 {[%emt 0:00:00]} 9. Bh4 {[%emt 0:00:30]} g5 {[%emt 0:00:30]} 10. Bg3 {[%emt 0:00:00]} Nh5 {[%emt 0:00:00]} 11. Nge2 {[%emt 0:02:00]} Nxg3 {[%emt 0:00:00]} 12. Nxg3 {[%emt 0:00:00]} h5 {[%emt 0:00:30]} 13. O-O-O {[%emt 0:02:00]} 1/2-1/2